fUSD/lending_fUSD_20240429
["ID","MTS","AMOUNT","RATE_DAILY","PERIOD"]
[324840640,1714369841815,-500.0,0.00011232,2]
[324840641,1714369841824,-500.0,0.00011232,2]
[324840642,1714369841833,-500.0,0.00011232,2]
[324840643,1714369841843,-500.0,0.00011232,2]
[324840644,1714369841851,-505.10599865,0.00011232,2]
[324840645,1714369841861,-500.0,0.00011232,2]
[324840646,1714369841871,-500.0,0.00011232,2]
[324840647,1714369841880,-504.71040092,0.00011232,2]
[324840648,1714369841890,-249.47,0.00011232,2]
[324840649,1714369841899,-500.0,0.00011232,2]
[324840650,1714369841908,-168.41350315,0.00011232,2]
[324840651,1714369841918,-500.0,0.00011232,2]
[324840652,1714369841927,-500.0,0.00011232,2]
[324840653,1714369841936,-500.0,0.00011232,2]
[324840654,1714369841946,-500.0,0.00011232,2]
[324840655,1714369841955,-500.0,0.00011232,2]
[324840656,1714369841964,-500.0,0.00011232,2]
[324840657,1714369841973,-500.0,0.00011232,2]
[324840658,1714369841983,-500.0,0.00011232,2]
[324840659,1714369841992,-500.0,0.00011232,2]
[324840660,1714369842002,-500.0,0.00011232,2]
[324840661,1714369842011,-500.0,0.00011232,2]
[324840662,1714369842021,-500.0,0.00011232,2]
[324840663,1714369842030,-500.0,0.00011232,2]
[324840664,1714369842039,-500.0,0.00011232,2]
[324840665,1714369842048,-500.0,0.00011232,2]
[324840666,1714369842058,-500.0,0.00011232,2]
[324840667,1714369842067,-500.0,0.00011232,2]
[324840668,1714369842077,-500.0,0.00011232,2]
[324840669,1714369842086,-500.0,0.00011232,2]
[324840670,1714369842095,-500.0,0.00011232,2]
[324840671,1714369842105,-500.0,0.00011232,2]
[324840672,1714369842115,-500.0,0.00011232,2]
[324840673,1714369842125,-500.0,0.00011232,2]
[324840674,1714369842134,-500.0,0.00011232,2]
[324840675,1714369842144,-500.0,0.00011232,2]
[324840676,1714369842154,-500.0,0.00011232,2]
[324840677,1714369842163,-500.0,0.00011232,2]
[324840678,1714369842173,-500.0,0.00011232,2]
[324840679,1714369842186,-500.0,0.00011232,2]
[324840680,1714369842195,-500.0,0.00011232,2]
[324840681,1714369842205,-500.0,0.00011232,2]
[324840682,1714369842215,-500.0,0.00011232,2]
[324840683,1714369842224,-500.0,0.00011232,2]
[324840684,1714369842235,-500.0,0.00011232,2]
[324840685,1714369842244,-524.75,0.00011232,2]
[324840686,1714369842255,-500.0,0.00011232,2]
[324840687,1714369842265,-500.0,0.00011232,2]
[324840688,1714369842275,-500.0,0.00011232,2]
[324840689,1714369842284,-500.0,0.00011232,2]
[324840690,1714369842294,-500.0,0.00011232,2]
[324840691,1714369842304,-500.0,0.00011232,2]
[324840692,1714369842314,-500.0,0.00011232,2]
[324840693,1714369842324,-500.0,0.00011232,2]
[324840694,1714369842334,-500.0,0.00011232,2]
[324840695,1714369842343,-500.0,0.00011232,2]
[324840696,1714369842353,-500.0,0.00011232,2]
[324840697,1714369842363,-500.0,0.00011232,2]
[324840698,1714369842372,-500.0,0.00011232,2]
[324840699,1714369842382,-500.0,0.00011232,2]
[324840700,1714369842391,-500.0,0.00011232,2]
[324840701,1714369842400,-500.0,0.00011232,2]
[324840702,1714369842410,-500.0,0.00011232,2]
[324840703,1714369842420,-629.87,0.00011232,2]
[324840704,1714369842430,-623.18869215,0.00011232,2]
[324840705,1714369842440,-482.83878724,0.00011232,2]
[324840707,1714369842449,-2212.09,0.00011232,2]
[324840708,1714369842459,-500.0,0.00011232,2]
[324840709,1714369842468,-500.0,0.00011232,2]
[324840710,1714369842477,-500.0,0.00011232,2]
[324840711,1714369842487,-500.0,0.00011232,2]
[324840712,1714369842496,-500.0,0.00011232,2]
[324840713,1714369842506,-500.0,0.00011232,2]
[324840714,1714369842515,-500.0,0.00011232,2]
[324840715,1714369842524,-500.0,0.00011232,2]
[324840716,1714369842533,-510.11914948,0.00011232,2]
[324840717,1714369842543,-500.0,0.00011232,2]
[324840718,1714369842552,-606.23318038,0.00011232,2]
[324840719,1714369842562,-500.0,0.00011232,2]
[324840720,1714369842571,-500.0,0.00011232,2]
[324840721,1714369842580,-506.19660627,0.00011232,2]
[324840722,1714369842589,-500.0,0.00011232,2]
[324840723,1714369842598,-500.0,0.00011232,2]
[324840724,1714369842607,-500.0,0.00011232,2]
[324840725,1714369842617,-500.0,0.00011232,2]
[324840726,1714369842626,-500.0,0.00011232,2]
[324840727,1714369842635,-500.0,0.00011232,2]
[324840728,1714369842643,-500.0,0.00011232,2]
[324840729,1714369842652,-500.0,0.00011232,2]
[324840730,1714369842661,-500.0,0.00011232,2]
[324840731,1714369842670,-500.0,0.00011232,2]
[324840732,1714369842679,-500.0,0.00011232,2]
[324840733,1714369842688,-500.0,0.00011232,2]
[324840734,1714369842697,-500.0,0.00011232,2]
[324840735,1714369842706,-500.0,0.00011232,2]
[324840736,1714369842716,-500.0,0.00011232,2]
[324840737,1714369842725,-1206.18,0.00011232,2]
[324840738,1714369842736,-1241.44,0.00011232,2]
[324840739,1714369842745,-500.0,0.00011232,2]
[324840740,1714369842755,-500.0,0.00011232,2]
[324840742,1714369842764,-505.67256529,0.00011232,2]
[324840744,1714369842773,-500.0,0.00011232,2]
[324840747,1714369842782,-500.0,0.00011232,2]
[324840748,1714369842792,-505.66351686,0.00011232,2]
[324840749,1714369842801,-514.52781539,0.00011232,2]
[324840750,1714369842811,-500.0,0.00011232,2]
[324840751,1714369842820,-500.0,0.00011232,2]
[324840752,1714369842829,-500.0,0.00011232,2]
[324840753,1714369842839,-500.0,0.00011232,2]
[324840754,1714369842848,-1143.41,0.00011232,2]
[324840755,1714369842857,-500.0,0.00011232,2]
[324840756,1714369842866,-500.0,0.00011232,2]
[324840757,1714369842875,-500.0,0.00011232,2]
[324840758,1714369842884,-500.0,0.00011232,2]
[324840759,1714369842893,-500.0,0.00011232,2]
[324840760,1714369842903,-500.0,0.00011232,2]
[324840761,1714369842912,-500.0,0.00011232,2]
[324840762,1714369842921,-500.0,0.00011232,2]
[324840763,1714369842931,-502.91533494,0.00011232,2]
[324840764,1714369842940,-1668.88,0.00011232,2]
[324840765,1714369842949,-503.18319624,0.00011232,2]
[324840766,1714369842959,-500.0,0.00011232,2]
[324840767,1714369842968,-654.9,0.00011232,2]
[324840768,1714369842978,-500.0,0.00011232,2]
[324840769,1714369842989,-238.98497942,0.00011232,2]
[324840770,1714369842998,-500.0,0.00011232,2]
[324840771,1714369843007,-482.26438238,0.00011232,2]
[324840772,1714369843016,-500.0,0.00011232,2]
[324840773,1714369843026,-1123.26,0.00011232,2]
[324840774,1714369843035,-507.69948382,0.00011232,2]
[324840775,1714369843044,-500.0,0.00011232,2]
[324840776,1714369843053,-500.0,0.00011232,2]
[324840777,1714369843062,-500.0,0.00011232,2]
[324840778,1714369843071,-500.0,0.00011232,2]
[324840779,1714369843080,-691.21,0.00011232,2]
[324840780,1714369843089,-500.0,0.00011232,2]
[324840781,1714369843099,-500.0,0.00011232,2]
[324840782,1714369843108,-500.0,0.00011232,2]
[324840783,1714369843117,-1148.03,0.00011232,2]
[324840784,1714369843126,-500.0,0.00011232,2]
[324840785,1714369843136,-500.0,0.00011232,2]
[324840787,1714369843146,-500.0,0.00011232,2]
[324840789,1714369843155,-500.0,0.00011232,2]
[324840791,1714369843164,-703.26,0.00011232,2]
[324840793,1714369843173,-500.0,0.00011232,2]
[324840795,1714369843188,-500.0,0.00011232,2]
[324840797,1714369843197,-500.0,0.00011232,2]
[324840799,1714369843207,-500.0,0.00011232,2]
[324840802,1714369843216,-865.39,0.00011232,2]
[324840803,1714369843225,-500.0,0.00011232,2]
[324840805,1714369843236,-151.0,0.00011232,2]
[324840807,1714369843246,-500.0,0.00011232,2]
[324840809,1714369843256,-1051.22,0.00011232,2]
[324840811,1714369843266,-500.0,0.00011232,2]
[324840814,1714369843276,-766.76,0.00011232,2]
[324840816,1714369843285,-500.0,0.00011232,2]
[324840818,1714369843294,-500.0,0.00011232,2]
[324840819,1714369843303,-151.0,0.00011232,2]
[324840820,1714369843312,-813.64,0.00011232,2]
[324840821,1714369843321,-820.07,0.00011232,2]
[324840822,1714369843330,-1514.85,0.00011232,2]
[324840823,1714369843340,-500.0,0.00011232,2]
[324840824,1714369843349,-151.0,0.00011232,2]
[324840825,1714369843358,-500.0,0.00011232,2]
[324840826,1714369843367,-500.0,0.00011232,2]
[324840827,1714369843376,-500.0,0.00011232,2]
[324840828,1714369843386,-156.749897,0.00011232,2]
[324840829,1714369843396,-500.0,0.00011232,2]
[324840830,1714369843405,-151.0,0.00011232,2]
[324840832,1714369843414,-500.0,0.00011232,2]
[324840834,1714369843423,-500.0,0.00011232,2]
[324840836,1714369843432,-500.0,0.00011232,2]
[324840838,1714369843441,-500.0,0.00011232,2]
[324840840,1714369843450,-500.0,0.00011232,2]
[324840842,1714369843459,-500.0,0.00011232,2]
[324840844,1714369843468,-151.0,0.00011232,2]
[324840846,1714369843477,-500.0,0.00011232,2]
[324840848,1714369843487,-500.0,0.00011232,2]
[324840849,1714369843496,-500.0,0.00011232,2]
[324840851,1714369843505,-579.14,0.00011232,2]
[324840853,1714369843514,-500.0,0.00011232,2]
[324840855,1714369843523,-274.707785,0.00011232,2]
[324840857,1714369843693,-500.0,0.00011232,2]
[324840858,1714369843703,-151.0,0.00011232,2]
[324840859,1714369843712,-3775.3,0.00011232,2]
[324840860,1714369843721,-1259.62,0.00011232,2]
[324840861,1714369843729,-500.0,0.00011232,2]
[324840862,1714369843739,-500.0,0.00011232,2]
[324840863,1714369843748,-500.0,0.00011232,2]
[324840864,1714369843758,-500.63526808,0.00011232,2]
[324840865,1714369843767,-302.02,0.00011232,2]
[324840866,1714369843776,-500.0,0.00011232,2]
[324840867,1714369843785,-506.53716399,0.00011232,2]
[324840868,1714369843795,-500.0,0.00011232,2]
[324840869,1714369843804,-599.58816782,0.00011232,2]
[324840870,1714369843812,-500.0,0.00011232,2]
[324840871,1714369843822,-151.0,0.00011232,2]
[324840872,1714369843831,-500.0,0.00011232,2]
[324840873,1714369843839,-500.0,0.00011232,2]
[324840874,1714369843849,-500.0,0.00011232,2]
[324840875,1714369843857,-500.0,0.00011232,2]
[324840876,1714369843867,-500.0,0.00011232,2]
[324840877,1714369843876,-500.0,0.00011232,2]
[324840878,1714369843885,-505.16579913,0.00011232,2]
[324840879,1714369843894,-151.0,0.00011232,2]
[324840880,1714369843903,-500.0,0.00011232,2]
[324840881,1714369843912,-500.0,0.00011232,2]
[324840882,1714369843921,-500.0,0.00011232,2]
[324840883,1714369843932,-500.0,0.00011232,2]
[324840884,1714369843941,-500.0,0.00011232,2]
[324840885,1714369843950,-500.0,0.00011232,2]
[324840886,1714369843959,-500.0,0.00011232,2]
[324840887,1714369843968,-500.0,0.00011232,2]
[324840888,1714369843977,-500.0,0.00011232,2]
[324840889,1714369843987,-500.0,0.00011232,2]
[324840890,1714369843997,-500.0,0.00011232,2]
[324840891,1714369844007,-151.0,0.00011232,2]
[324840892,1714369844017,-500.0,0.00011232,2]
[324840893,1714369844027,-500.0,0.00011232,2]
[324840894,1714369844037,-4974.82,0.00011232,2]
[324840895,1714369844047,-500.0,0.00011232,2]
[324840896,1714369844058,-151.0,0.00011232,2]
[324840897,1714369844067,-500.0,0.00011232,2]
[324840898,1714369844076,-1321.25,0.00011232,2]
[324840899,1714369844087,-500.0,0.00011232,2]
[324840900,1714369844096,-500.0,0.00011232,2]
[324840901,1714369844106,-500.0,0.00011506,2]
[324840902,1714369844117,-500.0,0.00011506,2]
[324840903,1714369844127,-598.9824949,0.00011506,2]
[324840904,1714369844137,-517.06026815,0.00011506,2]
[324840905,1714369844146,-500.0,0.00011506,2]
[324840906,1714369844155,-500.0,0.00011506,2]
[324840907,1714369844165,-500.0,0.00011506,2]
[324840908,1714369844175,-177.88,0.00011506,2]
[324840909,1714369844189,-500.0,0.00011506,2]
[324840910,1714369844198,-500.0,0.00011506,2]
[324840911,1714369844208,-582.07,0.00011506,2]
[324840912,1714369844217,-500.0,0.00011506,2]
[324840913,1714369844227,-500.0,0.00011506,2]
[324840914,1714369844237,-500.0,0.00011506,2]
[324840915,1714369844247,-500.0,0.00011506,2]
[324840916,1714369844256,-318.07,0.00011506,2]
[324840917,1714369844266,-500.0,0.00011506,2]
[324840918,1714369844276,-275.6,0.00011506,2]
[324840919,1714369844286,-500.0,0.00011506,2]
[324840920,1714369844295,-526.21,0.00011506,2]
[324840921,1714369844305,-500.0,0.00011506,2]
[324840922,1714369844314,-585.78,0.00011506,2]
[324840923,1714369844323,-500.0,0.00011506,2]
[324840924,1714369844333,-610.63,0.00011506,2]
[324840925,1714369844342,-500.0,0.00011506,2]
[324840926,1714369844351,-500.0,0.00011506,2]
[324840927,1714369844361,-500.0,0.00011506,2]
[324840928,1714369844371,-502.16008204,0.00011506,2]
[324840929,1714369844379,-500.0,0.00011506,2]
[324840930,1714369844389,-500.0,0.00011506,2]
[324840931,1714369844398,-513.35602551,0.00011506,2]
[324840932,1714369844407,-500.0,0.00011506,2]
[324840933,1714369844416,-500.0,0.00011506,2]
[324840934,1714369844426,-629.87,0.00011506,2]
[324840935,1714369844435,-500.0,0.00011506,2]
[324840936,1714369844444,-2212.09,0.00011506,2]
[324840937,1714369844453,-500.0,0.00011506,2]
[324840938,1714369844462,-500.0,0.00011506,2]
[324840939,1714369844471,-500.0,0.00011506,2]
[324840940,1714369844481,-548.21,0.00011506,2]
[324840941,1714369844493,-500.0,0.00011506,2]
[324840942,1714369844502,-570.81977529,0.00011506,2]
[324840943,1714369844511,-517.24,0.00011506,2]
[324840944,1714369844520,-500.0,0.00011506,2]
[324840945,1714369844529,-500.0,0.00011506,2]
[324840946,1714369844539,-500.0,0.00011506,2]
[324840947,1714369844548,-500.0,0.00011506,2]
[324840948,1714369844558,-500.0,0.00011506,2]
[324840949,1714369844567,-500.0,0.00011506,2]
[324840950,1714369844575,-500.0,0.00011506,2]
[324840951,1714369844584,-532.78,0.00011506,2]
[324840952,1714369844593,-500.0,0.00011506,2]
[324840953,1714369844602,-500.0,0.00011506,2]
[324840954,1714369844612,-500.0,0.00011506,2]
[324840955,1714369844621,-521.82398891,0.00011506,2]
[324840956,1714369844630,-151.751501,0.00011506,2]
[324840957,1714369844639,-151.0,0.00011506,2]
[324840958,1714369844648,-151.0,0.00011506,2]
[324840959,1714369844657,-500.0,0.00011506,2]
[324840960,1714369844666,-500.0,0.00011506,2]
[324840961,1714369844675,-1206.18,0.00011506,2]
[324840962,1714369844684,-1241.44,0.00011506,2]
[324840963,1714369844694,-500.0,0.00011506,2]
[324840964,1714369844703,-500.0,0.00011506,2]
[324840965,1714369844712,-500.0,0.00011506,2]
[324840966,1714369844720,-500.0,0.00011506,2]
[324840967,1714369844730,-500.0,0.00011506,2]
[324840968,1714369844742,-500.0,0.00011506,2]
[324840969,1714369844751,-1143.41,0.00011506,2]
[324840970,1714369844761,-500.0,0.00011506,2]
[324840971,1714369844769,-500.0,0.00011506,2]
[324840972,1714369844778,-211.137646,0.00011506,2]
[324840973,1714369844787,-500.0,0.00011506,2]
[324840974,1714369844796,-500.0,0.00011506,2]
[324840975,1714369844805,-211.137646,0.00011506,2]
[324840976,1714369844815,-1668.88,0.00011506,2]
[324840977,1714369844824,-233.251933,0.00011506,2]
[324840978,1714369844833,-151.0,0.00011506,2]
[324840979,1714369844843,-233.251933,0.00011506,2]
[324840980,1714369844852,-654.9,0.00011506,2]
[324840981,1714369844861,-500.0,0.00011506,2]
[324840982,1714369844870,-151.0,0.00011506,2]
[324840983,1714369844879,-151.0,0.00011506,2]
[324840984,1714369844888,-500.0,0.00011506,2]
[324840985,1714369844897,-152.32962,0.00011506,2]
[324840986,1714369844906,-151.0,0.00011506,2]
[324840987,1714369844915,-1123.26,0.00011506,2]
[324840988,1714369844925,-500.0,0.00011506,2]
[324840989,1714369844934,-151.0,0.00011506,2]
[324840990,1714369844943,-500.0,0.00011506,2]
[324840991,1714369844952,-151.0,0.00011506,2]
[324840992,1714369844962,-500.0,0.00011506,2]
[324840993,1714369844971,-691.21,0.00011506,2]
[324840994,1714369844980,-500.0,0.00011506,2]
[324840995,1714369844991,-500.0,0.00011506,2]
[324840996,1714369845000,-411.62,0.00011506,2]
[324840997,1714369845009,-1148.03,0.00011506,2]
[324840998,1714369845019,-500.0,0.00011506,2]
[324840999,1714369845028,-151.0,0.00011506,2]
[324841000,1714369845037,-703.26,0.00011506,2]
[324841001,1714369845047,-500.0,0.00011506,2]
[324841002,1714369845056,-151.0,0.00011506,2]
[324841003,1714369845065,-500.0,0.00011506,2]
[324841004,1714369845075,-500.0,0.00011506,2]
[324841005,1714369845085,-865.39,0.00011506,2]
[324841006,1714369845095,-151.0,0.00011506,2]
[324841007,1714369845104,-500.0,0.00011506,2]
[324841008,1714369845114,-1051.22,0.00011506,2]
[324841009,1714369845123,-500.0,0.00011506,2]
[324841010,1714369845133,-766.76,0.00011506,2]
[324841011,1714369845142,-500.0,0.00011506,2]
[324841012,1714369845152,-151.0,0.00011506,2]
[324841013,1714369845163,-813.64,0.00011506,2]
[324841014,1714369845173,-820.07,0.00011506,2]
[324841015,1714369845183,-1514.85,0.00011506,2]
[324841016,1714369845196,-153.120637,0.00011506,2]
[324841017,1714369845205,-500.0,0.00011506,2]
[324841018,1714369845215,-151.0,0.00011506,2]
[324841019,1714369845226,-500.0,0.00011506,2]
[324841020,1714369845237,-500.0,0.00011506,2]
[324841021,1714369845247,-500.0,0.00011506,2]
[324841022,1714369845255,-265.35,0.00011506,2]
[324841023,1714369845265,-500.0,0.00011506,2]
[324841024,1714369845275,-151.0,0.00011506,2]
[324841025,1714369845284,-500.0,0.00011506,2]
[324841026,1714369845294,-490.93,0.00011506,2]
[324841027,1714369845304,-579.14,0.00011506,2]
[324841028,1714369845314,-339.45,0.00011506,2]
[324841029,1714369845323,-199.787642,0.00011506,2]
[324841030,1714369845333,-3775.3,0.00011506,2]
[324841031,1714369845342,-1259.62,0.00011506,2]
[324841032,1714369845351,-500.0,0.00011506,2]
[324841033,1714369845360,-553.68,0.00011506,2]
[324841034,1714369845370,-151.0,0.00011506,2]
[324841035,1714369845379,-500.0,0.00011506,2]
[324841036,1714369845389,-500.0,0.00011506,2]
[324841037,1714369845398,-506.72490135,0.00011506,2]
[324841038,1714369845409,-500.47,0.00011506,2]
[324841039,1714369845419,-500.0,0.00011506,2]
[324841040,1714369845428,-500.0,0.00011506,2]
[324841041,1714369845439,-151.0,0.00011506,2]
[324841042,1714369845448,-522.67981214,0.00011506,2]
[324841043,1714369845458,-500.0,0.00011506,2]
[324841044,1714369845467,-521.10637359,0.00011506,2]
[324841045,1714369845475,-500.0,0.00011506,2]
[324841047,1714369845484,-500.0,0.00011506,2]
[324841048,1714369845495,-500.0,0.00011506,2]
[324841049,1714369845504,-500.0,0.00011506,2]
[324841050,1714369845513,-500.0,0.00011506,2]
[324841051,1714369845523,-500.0,0.00011506,2]
[324841052,1714369845531,-151.0,0.00011506,2]
[324841053,1714369845541,-500.0,0.00011506,2]
[324841054,1714369845551,-500.0,0.00011506,2]
[324841055,1714369845562,-4974.82,0.00011506,2]
[324841056,1714369845571,-500.0,0.00011506,2]
[324841057,1714369845580,-151.0,0.00011506,2]
[324841058,1714369845590,-500.0,0.00011506,2]
[324841059,1714369845599,-1321.25,0.00011506,2]
[324841060,1714369845608,-500.0,0.00011506,2]
[324841061,1714369845617,-500.0,0.00011506,2]
[324841062,1714369845626,-280.23,0.00011555,2]
[324841063,1714369845635,-280.23,0.00011558,2]
[324841064,1714369845644,-280.23,0.00011561,2]
[324841065,1714369845654,-280.23,0.00011564,2]
[324841066,1714369845663,-280.23,0.00011567,2]
[324841067,1714369845672,-280.23,0.0001157,2]
[324841068,1714369845681,-166.96379571,0.00011573,2]
[324841069,1714369845690,-280.23,0.00011573,2]
[324841070,1714369845699,-280.23,0.00011576,2]
[324841071,1714369845709,-280.23,0.00011579,2]
[324841072,1714369845718,-280.23,0.00011582,2]
[324841073,1714369845727,-280.23,0.00011585,2]
[324841074,1714369845736,-280.23,0.00011588,2]
[324841075,1714369845745,-1327.0793,0.00011591,2]
[324841076,1714369845755,-280.23,0.00011592,2]
[324841077,1714369845764,-280.23,0.00011595,2]
[324841078,1714369845773,-280.23,0.00011598,2]
[324841079,1714369845782,-280.23,0.00011601,2]
[324841080,1714369845791,-280.23,0.00011604,2]
[324841081,1714369845799,-280.23,0.00011607,2]
[324841082,1714369845808,-280.23,0.0001161,2]
[324841083,1714369845818,-280.23,0.00011613,2]
[324841084,1714369845827,-500.0,0.0001178,2]
[324841085,1714369845836,-500.0,0.0001178,2]
[324841086,1714369845845,-500.0,0.0001178,2]
[324841087,1714369845854,-500.0,0.0001178,2]
[324841088,1714369845863,-500.0,0.0001178,2]
[324841089,1714369845872,-500.0,0.0001178,2]
[324841090,1714369845881,-500.0,0.0001178,2]
[324841091,1714369845890,-545.62128293,0.0001178,2]
[324841092,1714369845900,-500.0,0.0001178,2]
[324841093,1714369845909,-548.3,0.0001178,2]
[324841094,1714369845918,-500.0,0.0001178,2]
[324841095,1714369845927,-453.32,0.0001178,2]
[324841096,1714369845936,-150.57,0.0001178,2]
[324841097,1714369845945,-500.0,0.0001178,2]
[324841098,1714369845954,-500.0,0.0001178,2]
[324841099,1714369845963,-500.0,0.0001178,2]
[324841100,1714369845972,-200.29,0.0001178,2]
[324841101,1714369845981,-629.87,0.0001178,2]
[324841102,1714369845991,-500.0,0.0001178,2]
[324841103,1714369846001,-2212.09,0.0001178,2]
[324841104,1714369846010,-500.0,0.0001178,2]
[324841105,1714369846019,-500.0,0.0001178,2]
[324841106,1714369846028,-240.44311,0.0001178,2]
[324841107,1714369846037,-152.34857,0.0001178,2]
[324841108,1714369846047,-500.0,0.0001178,2]
[324841109,1714369846056,-500.0,0.0001178,2]
[324841110,1714369846065,-163.0458,0.0001178,2]
[324841111,1714369846075,-500.0,0.0001178,2]
[324841112,1714369846084,-275.74,0.0001178,2]
[324841113,1714369846093,-500.0,0.0001178,2]
[324841114,1714369846102,-151.0,0.0001178,2]
[324841116,1714369846111,-500.0,0.0001178,2]
[324841118,1714369846121,-500.0,0.0001178,2]
[324841120,1714369846130,-239.50959597,0.0001178,2]
[324841122,1714369846140,-500.0,0.0001178,2]
[324841124,1714369846150,-500.0,0.0001178,2]
[324841125,1714369846159,-500.0,0.0001178,2]
[324841128,1714369846169,-1206.18,0.0001178,2]
[324841130,1714369846178,-1241.44,0.0001178,2]
[324841132,1714369846190,-500.0,0.0001178,2]
[324841135,1714369846202,-500.0,0.0001178,2]
[324841137,1714369846210,-500.0,0.0001178,2]
[324841139,1714369846220,-500.0,0.0001178,2]
[324841141,1714369846230,-1143.41,0.0001178,2]
[324841143,1714369846240,-500.0,0.0001178,2]
[324841145,1714369846249,-500.0,0.0001178,2]
[324841146,1714369846258,-500.0,0.0001178,2]
[324841148,1714369846269,-1668.88,0.0001178,2]
[324841150,1714369846278,-654.9,0.0001178,2]
[324841152,1714369846287,-545.24424445,0.0001178,2]
[324841154,1714369846297,-500.0,0.0001178,2]
[324841156,1714369846306,-1123.26,0.0001178,2]
[324841158,1714369846315,-171.74,0.0001178,2]
[324841160,1714369846325,-500.0,0.0001178,2]
[324841162,1714369846334,-500.0,0.0001178,2]
[324841164,1714369846343,-691.21,0.0001178,2]
[324841166,1714369846353,-500.0,0.0001178,2]
[324841169,1714369846362,-500.0,0.0001178,2]
[324841171,1714369846371,-1148.03,0.0001178,2]
[324841173,1714369846381,-500.0,0.0001178,2]
[324841175,1714369846390,-703.26,0.0001178,2]
[324841176,1714369846398,-500.0,0.0001178,2]
[324841178,1714369846407,-500.0,0.0001178,2]
[324841180,1714369846416,-865.39,0.0001178,2]
[324841183,1714369846426,-151.0,0.0001178,2]
[324841184,1714369846435,-500.0,0.0001178,2]
[324841186,1714369846444,-1051.22,0.0001178,2]
[324841188,1714369846453,-500.0,0.0001178,2]
[324841191,1714369846463,-766.76,0.0001178,2]
[324841192,1714369846471,-500.0,0.0001178,2]
[324841194,1714369846480,-151.0,0.0001178,2]
[324841196,1714369846490,-813.64,0.0001178,2]
[324841198,1714369846499,-820.07,0.0001178,2]
[324841200,1714369846507,-1514.85,0.0001178,2]
[324841203,1714369846516,-552.44,0.0001178,2]
[324841204,1714369846526,-500.0,0.0001178,2]
[324841206,1714369846535,-500.0,0.0001178,2]
[324841208,1714369846543,-500.0,0.0001178,2]
[324841210,1714369846552,-277.048538,0.0001178,2]
[324841212,1714369846561,-500.0,0.0001178,2]
[324841214,1714369846570,-579.14,0.0001178,2]
[324841216,1714369846579,-3775.3,0.0001178,2]
[324841218,1714369846587,-1259.62,0.0001178,2]
[324841220,1714369846597,-151.0,0.0001178,2]
[324841222,1714369846606,-500.0,0.0001178,2]
[324841224,1714369846615,-235.916696,0.0001178,2]
[324841226,1714369846624,-500.0,0.0001178,2]
[324841227,1714369846633,-500.0,0.0001178,2]
[324841228,1714369846641,-500.0,0.0001178,2]
[324841229,1714369846650,-500.0,0.0001178,2]
[324841230,1714369846659,-500.0,0.0001178,2]
[324841231,1714369846667,-500.0,0.0001178,2]